[Event "Late-Titled-Tuesday-Blitz-February-06-2024"]
[Site "Chess.com"]
[Date "2024.02.06"]
[Round "5"]
[White "ATM622"]
[Black "goldihouse"]
[Result "1-0"]
[WhiteElo "2458"]
[BlackElo "2599"]
[TimeControl "180+1"]
[EndTime "14:55:27 PST"]
[Termination "ATM622 won on time"]

1. d4 {[%clk 0:02:55.5]} 1... Nf6 {[%clk 0:02:59.7]} 2. c4 {[%clk 0:02:53.8]}
2... e6 {[%clk 0:02:59.7]} 3. g3 {[%clk 0:02:50.7]} 3... c5 {[%clk 0:02:59.2]}
4. d5 {[%clk 0:02:49.8]} 4... exd5 {[%clk 0:03:00.1]} 5. cxd5 {[%clk 0:02:49.2]}
5... g6 {[%clk 0:03:01]} 6. Nc3 {[%clk 0:02:47.5]} 6... Bg7 {[%clk 0:03:01.2]}
7. Bg2 {[%clk 0:02:47.7]} 7... O-O {[%clk 0:03:01.6]} 8. Nf3 {[%clk 0:02:47.4]}
8... d6 {[%clk 0:03:00.7]} 9. O-O {[%clk 0:02:47.5]} 9... Re8 {[%clk 0:03:00.9]}
10. Nd2 {[%clk 0:02:47.1]} 10... Nbd7 {[%clk 0:03:00.9]} 11. Nc4 {[%clk
0:02:46]} 11... Nb6 {[%clk 0:03:00.7]} 12. Nxb6 {[%clk 0:02:44.4]} 12... Qxb6
{[%clk 0:03:00.6]} 13. a4 {[%clk 0:02:42.8]} 13... Bd7 {[%clk 0:02:42.6]} 14. a5
{[%clk 0:02:41]} 14... Qc7 {[%clk 0:02:34.1]} 15. h3 {[%clk 0:02:33.4]} 15... b5
{[%clk 0:02:32.5]} 16. axb6 {[%clk 0:02:26.2]} 16... axb6 {[%clk 0:02:33.4]} 17.
Rxa8 {[%clk 0:02:10.6]} 17... Rxa8 {[%clk 0:02:32.9]} 18. Qb3 {[%clk 0:02:04.3]}
18... b5 {[%clk 0:02:22.3]} 19. Bf4 {[%clk 0:01:51.2]} 19... b4 {[%clk
0:02:02.5]} 20. Nb1 {[%clk 0:01:48.3]} 20... Nh5 {[%clk 0:01:47.5]} 21. Be3
{[%clk 0:01:42.3]} 21... Bb5 {[%clk 0:01:39.2]} 22. Rc1 {[%clk 0:01:41.6]} 22...
Qd7 {[%clk 0:01:15.1]} 23. g4 {[%clk 0:01:34.3]} 23... Nf6 {[%clk 0:01:11.7]}
24. Bf3 {[%clk 0:01:33.9]} 24... h5 {[%clk 0:01:04.3]} 25. g5 {[%clk 0:01:28]}
25... Nh7 {[%clk 0:00:57.9]} 26. Kg2 {[%clk 0:01:22.1]} 26... Qf5 {[%clk
0:00:20.6]} 27. h4 {[%clk 0:01:10.4]} 27... f6 {[%clk 0:00:20.5]} 28. gxf6
{[%clk 0:00:58.5]} 28... Nxf6 {[%clk 0:00:21.4]} 29. Bg5 {[%clk 0:00:37.7]}
29... Re8 {[%clk 0:00:19.6]} 30. Qc2 {[%clk 0:00:29.8]} 30... Qe5 {[%clk
0:00:16.6]} 31. Qxg6 {[%clk 0:00:26.5]} 31... Rf8 {[%clk 0:00:09.5]} 32. Nd2
{[%clk 0:00:18.5]} 32... Bxe2 {[%clk 0:00:09.5]} 33. Re1 {[%clk 0:00:14.6]}
33... Bxf3+ {[%clk 0:00:09.3]} 34. Nxf3 {[%clk 0:00:15.5]} 34... Qxd5 {[%clk
0:00:09.8]} 35. Re7 {[%clk 0:00:12]} 35... Qxf3+ {[%clk 0:00:06.3]} 36. Kxf3
{[%clk 0:00:11.3]} 36... Ng4+ {[%clk 0:00:05.4]} 37. Ke2 {[%clk 0:00:06.4]} 1-0

[Event "Late-Titled-Tuesday-Blitz-February-06-2024"]
[Site "Chess.com"]
[Date "2024.02.06"]
[Round "5"]
[White "Kostukov_Alex"]
[Black "rcmz"]
[Result "1-0"]
[WhiteElo "2279"]
[BlackElo "2130"]
[TimeControl "180+1"]
[EndTime "14:55:28 PST"]
[Termination "Kostukov_Alex won by resignation"]

1. g3 {[%clk 0:02:53.8]} 1... f5 {[%clk 0:02:57.9]} 2. c4 {[%clk 0:02:49.6]}
2... Nf6 {[%clk 0:02:57.7]} 3. d4 {[%clk 0:02:49.6]} 3... g6 {[%clk 0:02:57.3]}
4. Bg2 {[%clk 0:02:50.2]} 4... Bg7 {[%clk 0:02:57.5]} 5. Nf3 {[%clk 0:02:50.9]}
5... d6 {[%clk 0:02:57.9]} 6. O-O {[%clk 0:02:51.2]} 6... c6 {[%clk 0:02:57.9]}
7. Nc3 {[%clk 0:02:51.1]} 7... O-O {[%clk 0:02:57.8]} 8. b3 {[%clk 0:02:48.6]}
8... Na6 {[%clk 0:02:52.3]} 9. Bb2 {[%clk 0:02:47.2]} 9... Qe8 {[%clk
0:02:52.2]} 10. d5 {[%clk 0:02:41.5]} 10... c5 {[%clk 0:02:43.4]} 11. Ng5 {[%clk
0:02:32.2]} 11... Nc7 {[%clk 0:02:36.2]} 12. a4 {[%clk 0:02:08.9]} 12... h6
{[%clk 0:02:34]} 13. Nh3 {[%clk 0:02:08.9]} 13... g5 {[%clk 0:02:28.4]} 14. f4
{[%clk 0:02:04.4]} 14... Ng4 {[%clk 0:02:07.3]} 15. fxg5 {[%clk 0:01:49.2]}
15... Ne3 {[%clk 0:02:00.3]} 16. Qc1 {[%clk 0:01:40.9]} 16... Nxf1 {[%clk
0:01:58.8]} 17. gxh6 {[%clk 0:01:39.2]} 17... Bd4+ {[%clk 0:01:20.6]} 18. Kh1
{[%clk 0:01:29.4]} 18... Nxg3+ {[%clk 0:01:17.6]} 19. hxg3 {[%clk 0:01:09.6]}
19... Qh5 {[%clk 0:01:17.2]} 20. Qg5+ {[%clk 0:00:52.1]} 20... Qxg5 {[%clk
0:01:16.1]} 21. Nxg5 {[%clk 0:00:53]} 21... Rf6 {[%clk 0:01:06.3]} 22. h7+
{[%clk 0:00:51.2]} 22... Kh8 {[%clk 0:01:06.4]} 23. Bf3 {[%clk 0:00:36.8]} 23...
Rh6+ {[%clk 0:00:59.6]} 24. Kg2 {[%clk 0:00:36.6]} 24... Kg7 {[%clk 0:00:54.7]}
25. e3 {[%clk 0:00:36.2]} 25... Bf6 {[%clk 0:00:52.9]} 26. Nh3 {[%clk
0:00:29.1]} 26... Rxh7 {[%clk 0:00:50.6]} 27. Nf4 {[%clk 0:00:29.2]} 27... Be5
{[%clk 0:00:45.5]} 28. Rb1 {[%clk 0:00:21.8]} 28... Na6 {[%clk 0:00:43.8]} 29.
e4 {[%clk 0:00:20.3]} 29... Nb4 {[%clk 0:00:41.5]} 30. Nb5 {[%clk 0:00:16.8]}
30... Bxb2 {[%clk 0:00:37.4]} 31. Rxb2 {[%clk 0:00:17.7]} 31... Bd7 {[%clk
0:00:36.5]} 32. Nc7 {[%clk 0:00:17.3]} 32... Rah8 {[%clk 0:00:34.5]} 33. Nce6+
{[%clk 0:00:17.3]} 33... Bxe6 {[%clk 0:00:33.9]} 34. Nxe6+ {[%clk 0:00:16.9]}
34... Kf6 {[%clk 0:00:33.8]} 35. Kg1 {[%clk 0:00:13.7]} 35... fxe4 {[%clk
0:00:31.3]} 36. Bxe4 {[%clk 0:00:13.7]} 36... Rh3 {[%clk 0:00:29.8]} 37. Rf2+
{[%clk 0:00:13.4]} 37... Ke5 {[%clk 0:00:25.1]} 38. Bg2 {[%clk 0:00:11]} 38...
R3h5 {[%clk 0:00:11]} 39. Re2+ {[%clk 0:00:09.8]} 39... Kf6 {[%clk 0:00:08.6]}
40. Be4 {[%clk 0:00:08.4]} 40... Re5 {[%clk 0:00:06.6]} 41. Rf2+ {[%clk
0:00:07.8]} 1-0

[Event "Late-Titled-Tuesday-Blitz-February-06-2024"]
[Site "Chess.com"]
[Date "2024.02.06"]
[Round "5"]
[White "MikaelyanArman"]
[Black "FairChess_on_YouTube"]
[Result "0-1"]
[WhiteElo "2858"]
[BlackElo "3052"]
[TimeControl "180+1"]
[EndTime "14:55:31 PST"]
[Termination "FairChess_on_YouTube won by resignation"]

1. d4 {[%clk 0:03:00.9]} 1... Nf6 {[%clk 0:02:59.5]} 2. c4 {[%clk 0:03:01.4]}
2... g6 {[%clk 0:02:59.6]} 3. Nc3 {[%clk 0:03:01.3]} 3... Bg7 {[%clk 0:02:59.9]}
4. e4 {[%clk 0:03:01.7]} 4... O-O {[%clk 0:03:00.5]} 5. f4 {[%clk 0:03:02.1]}
5... d6 {[%clk 0:02:57.2]} 6. Nf3 {[%clk 0:03:02.4]} 6... Bg4 {[%clk 0:02:54.4]}
7. Be2 {[%clk 0:03:02.3]} 7... c5 {[%clk 0:02:54.3]} 8. d5 {[%clk 0:03:01.4]}
8... Nbd7 {[%clk 0:02:51.6]} 9. O-O {[%clk 0:02:59.2]} 9... Ne8 {[%clk
0:02:50.2]} 10. Ng5 {[%clk 0:02:40.6]} 10... Bxe2 {[%clk 0:02:49.2]} 11. Qxe2
{[%clk 0:02:41.5]} 11... Nc7 {[%clk 0:02:45.3]} 12. e5 {[%clk 0:02:25.4]} 12...
dxe5 {[%clk 0:02:43.9]} 13. f5 {[%clk 0:02:25.9]} 13... Ne8 {[%clk 0:02:41.5]}
14. Nce4 {[%clk 0:02:18.2]} 14... Ndf6 {[%clk 0:02:35.3]} 15. Be3 {[%clk
0:01:55.3]} 15... Nd6 {[%clk 0:02:29.5]} 16. Nxd6 {[%clk 0:01:24.2]} 16... Qxd6
{[%clk 0:02:25.1]} 17. fxg6 {[%clk 0:01:20.8]} 17... hxg6 {[%clk 0:02:22.6]} 18.
Rae1 {[%clk 0:01:12.6]} 18... b5 {[%clk 0:02:11.9]} 19. b3 {[%clk 0:01:11.6]}
19... bxc4 {[%clk 0:02:12]} 20. bxc4 {[%clk 0:01:12.5]} 20... Rab8 {[%clk
0:02:12.3]} 21. Qf3 {[%clk 0:00:57.4]} 21... Rb2 {[%clk 0:01:59.6]} 22. Qh3
{[%clk 0:00:55.9]} 22... Qd7 {[%clk 0:01:59.2]} 23. Bxc5 {[%clk 0:00:47.2]}
23... Qxh3 {[%clk 0:01:57.1]} 24. Nxh3 {[%clk 0:00:48.1]} 24... Re8 {[%clk
0:01:49.4]} 25. Rf2 {[%clk 0:00:48.4]} 25... Rb7 {[%clk 0:01:46.6]} 26. Ba3
{[%clk 0:00:41.3]} 26... Rc8 {[%clk 0:01:44.7]} 27. d6 {[%clk 0:00:19.6]} 27...
exd6 {[%clk 0:01:40.9]} 28. Bxd6 {[%clk 0:00:20.5]} 28... Rxc4 {[%clk
0:01:37.3]} 29. Ng5 {[%clk 0:00:20.5]} 29... Ng4 {[%clk 0:01:31.2]} 30. Rfe2
{[%clk 0:00:20.2]} 30... Rd7 {[%clk 0:01:25.5]} 31. Bb8 {[%clk 0:00:12.4]} 31...
f6 {[%clk 0:01:06.1]} 32. h3 {[%clk 0:00:12.1]} 32... Nh6 {[%clk 0:01:04.1]} 33.
Ne6 {[%clk 0:00:12.5]} 33... Kf7 {[%clk 0:00:51.8]} 34. Nxg7 {[%clk 0:00:11.6]}
34... Kxg7 {[%clk 0:00:52.7]} 35. Rb2 {[%clk 0:00:12]} 35... Nf5 {[%clk
0:00:51]} 36. Reb1 {[%clk 0:00:10.8]} 36... Kh6 {[%clk 0:00:48.3]} 37. Kh2
{[%clk 0:00:08.3]} 37... a5 {[%clk 0:00:43.9]} 38. Rf2 {[%clk 0:00:08.5]} 38...
Kg5 {[%clk 0:00:36.8]} 39. Rb6 {[%clk 0:00:08.2]} 39... Rb4 {[%clk 0:00:32.7]}
40. Rxb4 {[%clk 0:00:06.8]} 40... axb4 {[%clk 0:00:33.6]} 41. Rc2 {[%clk
0:00:05.4]} 41... Ne3 {[%clk 0:00:29.8]} 42. Rc6 {[%clk 0:00:03.5]} 42... Rd2
{[%clk 0:00:28.9]} 43. Kg3 {[%clk 0:00:04]} 43... Nxg2 {[%clk 0:00:27.3]} 44.
h4+ {[%clk 0:00:02.3]} 44... Nxh4 {[%clk 0:00:26.9]} 45. Rc4 {[%clk 0:00:01.8]}
45... Nf5+ {[%clk 0:00:25.9]} 46. Kf3 {[%clk 0:00:02.4]} 46... Rxa2 {[%clk
0:00:24.5]} 47. Rxb4 {[%clk 0:00:02.8]} 47... Nd4+ {[%clk 0:00:24.4]} 48. Ke3
{[%clk 0:00:03.4]} 48... Nc6 {[%clk 0:00:24]} 0-1

[Event "Late-Titled-Tuesday-Blitz-February-06-2024"]
[Site "Chess.com"]
[Date "2024.02.06"]
[Round "5"]
[White "Dinamo3"]
[Black "Quattroporte300"]
[Result "0-1"]
[WhiteElo "2508"]
[BlackElo "2392"]
[TimeControl "180+1"]
[EndTime "14:55:33 PST"]
[Termination "Quattroporte300 won on time"]

1. c4 {[%clk 0:03:00.9]} 1... c6 {[%clk 0:02:57]} 2. Nc3 {[%clk 0:02:59]} 2...
d5 {[%clk 0:02:56]} 3. e3 {[%clk 0:02:56.2]} 3... e5 {[%clk 0:02:55.3]} 4. Nf3
{[%clk 0:02:54.6]} 4... e4 {[%clk 0:02:49.9]} 5. Nd4 {[%clk 0:02:50.6]} 5... Nf6
{[%clk 0:02:50.1]} 6. cxd5 {[%clk 0:02:50.1]} 6... cxd5 {[%clk 0:02:49.6]} 7. d3
{[%clk 0:02:50]} 7... Bc5 {[%clk 0:02:46.4]} 8. dxe4 {[%clk 0:02:47.3]} 8...
dxe4 {[%clk 0:02:45.6]} 9. Bb5+ {[%clk 0:02:41]} 9... Bd7 {[%clk 0:02:42.9]} 10.
O-O {[%clk 0:02:23.3]} 10... O-O {[%clk 0:02:42.2]} 11. a3 {[%clk 0:01:56.2]}
11... Qe7 {[%clk 0:02:37.5]} 12. Nb3 {[%clk 0:01:47.2]} 12... Bg4 {[%clk
0:02:17]} 13. Be2 {[%clk 0:01:27.5]} 13... Rd8 {[%clk 0:02:11.8]} 14. Bd2 {[%clk
0:01:27.7]} 14... Bxe2 {[%clk 0:02:00.7]} 15. Qxe2 {[%clk 0:01:27.6]} 15... Bd6
{[%clk 0:01:58.6]} 16. Nb5 {[%clk 0:01:17.4]} 16... Be5 {[%clk 0:01:41.3]} 17.
Bc3 {[%clk 0:01:14.4]} 17... Nc6 {[%clk 0:01:39.8]} 18. Rfd1 {[%clk 0:01:04]}
18... a6 {[%clk 0:01:36]} 19. Bxe5 {[%clk 0:01:02.9]} 19... Nxe5 {[%clk
0:01:25.4]} 20. Nc3 {[%clk 0:00:55.8]} 20... Rd3 {[%clk 0:01:03.7]} 21. Nd4
{[%clk 0:00:51.4]} 21... Rd8 {[%clk 0:01:00.6]} 22. h3 {[%clk 0:00:39.5]} 22...
g6 {[%clk 0:00:55.6]} 23. Rd2 {[%clk 0:00:38.7]} 23... Kg7 {[%clk 0:00:55]} 24.
Rad1 {[%clk 0:00:38.8]} 24... Rxd2 {[%clk 0:00:46.9]} 25. Rxd2 {[%clk
0:00:38.4]} 25... h5 {[%clk 0:00:39.5]} 26. Qd1 {[%clk 0:00:38.1]} 26... Rc8
{[%clk 0:00:35.6]} 27. Qb1 {[%clk 0:00:36.2]} 27... Nc4 {[%clk 0:00:32.1]} 28.
Rd1 {[%clk 0:00:34.4]} 28... b5 {[%clk 0:00:32.5]} 29. Nde2 {[%clk 0:00:28.1]}
29... Qe5 {[%clk 0:00:22.3]} 30. Nf4 {[%clk 0:00:22.7]} 30... Nxa3 {[%clk
0:00:20.1]} 31. Qa2 {[%clk 0:00:22.1]} 31... b4 {[%clk 0:00:14.7]} 32. Ncd5
{[%clk 0:00:17.5]} 32... Rc2 {[%clk 0:00:08.8]} 33. Nxf6 {[%clk 0:00:12]} 33...
Qxf6 {[%clk 0:00:08.2]} 34. Qd5 {[%clk 0:00:07.5]} 34... Rxb2 {[%clk 0:00:05.9]}
35. Qxe4 {[%clk 0:00:07.8]} 35... Nb5 {[%clk 0:00:04.6]} 36. Rd7 {[%clk
0:00:06.2]} 36... Ra2 {[%clk 0:00:02.7]} 37. f3 {[%clk 0:00:03.2]} 37... Ra1+
{[%clk 0:00:03.3]} 38. Kh2 {[%clk 0:00:03.6]} 38... Ra2 {[%clk 0:00:03.3]} 39.
Nd5 {[%clk 0:00:03.5]} 39... Qf5 {[%clk 0:00:03.1]} 40. Qe8 {[%clk 0:00:02.3]}
40... Qg5 {[%clk 0:00:02.5]} 0-1

[Event "Late-Titled-Tuesday-Blitz-February-06-2024"]
[Site "Chess.com"]
[Date "2024.02.06"]
[Round "5"]
[White "Levanzovsky"]
[Black "TanitoluwaAps116"]
[Result "1-0"]
[WhiteElo "2555"]
[BlackElo "2808"]
[TimeControl "180+1"]
[EndTime "14:55:35 PST"]
[Termination "Levanzovsky won by checkmate"]

1. e4 {[%clk 0:03:00.9]} 1... c5 {[%clk 0:02:54.4]} 2. Nf3 {[%clk 0:02:58.2]}
2... e6 {[%clk 0:02:53.4]} 3. d3 {[%clk 0:02:54.8]} 3... Nc6 {[%clk 0:02:51.2]}
4. g3 {[%clk 0:02:54.9]} 4... d5 {[%clk 0:02:51.9]} 5. Nbd2 {[%clk 0:02:51.7]}
5... Nf6 {[%clk 0:02:50.8]} 6. Bg2 {[%clk 0:02:52.2]} 6... Be7 {[%clk
0:02:47.7]} 7. O-O {[%clk 0:02:47.7]} 7... Qc7 {[%clk 0:02:46.9]} 8. Re1 {[%clk
0:02:47.9]} 8... b6 {[%clk 0:02:44.2]} 9. c3 {[%clk 0:02:47.2]} 9... Bb7 {[%clk
0:02:24]} 10. Qe2 {[%clk 0:02:45.1]} 10... O-O-O {[%clk 0:02:10]} 11. a3 {[%clk
0:02:29.6]} 11... Kb8 {[%clk 0:02:05.1]} 12. b4 {[%clk 0:02:29]} 12... Ka8
{[%clk 0:01:47.2]} 13. Rb1 {[%clk 0:02:18]} 13... Rhe8 {[%clk 0:01:36.4]} 14.
bxc5 {[%clk 0:02:12.1]} 14... Bxc5 {[%clk 0:01:24.3]} 15. d4 {[%clk 0:02:12]}
15... Be7 {[%clk 0:01:03.8]} 16. exd5 {[%clk 0:01:58.9]} 16... exd5 {[%clk
0:00:48.2]} 17. Qd3 {[%clk 0:01:36.2]} 17... Bd6 {[%clk 0:00:32]} 18. Bb2 {[%clk
0:01:29.2]} 18... Na5 {[%clk 0:00:23.3]} 19. Ne5 {[%clk 0:01:16.6]} 19... Bxe5
{[%clk 0:00:17]} 20. dxe5 {[%clk 0:01:12.9]} 20... Rxe5 {[%clk 0:00:17.9]} 21.
Rxe5 {[%clk 0:01:12.4]} 21... Qxe5 {[%clk 0:00:18.8]} 22. c4 {[%clk 0:01:12.9]}
22... Qd6 {[%clk 0:00:14.7]} 23. Bxf6 {[%clk 0:01:06.9]} 23... gxf6 {[%clk
0:00:12.3]} 24. cxd5 {[%clk 0:00:58.9]} 24... Bxd5 {[%clk 0:00:09.5]} 25. Ne4
{[%clk 0:00:57.8]} 25... Qc7 {[%clk 0:00:05.6]} 26. Rd1 {[%clk 0:00:51.3]} 26...
Nb7 {[%clk 0:00:03.6]} 27. Qf3 {[%clk 0:00:29.6]} 27... Bc6 {[%clk 0:00:03]} 28.
Rxd8+ {[%clk 0:00:27.1]} 28... Qxd8 {[%clk 0:00:03.9]} 29. h4 {[%clk 0:00:17.6]}
29... Qd5 {[%clk 0:00:03.7]} 30. Qxf6 {[%clk 0:00:14.8]} 30... Qd1+ {[%clk
0:00:02.2]} 31. Kh2 {[%clk 0:00:14.7]} 31... Bd5 {[%clk 0:00:01.9]} 32. Qh8+
{[%clk 0:00:12.6]} 32... Nd8 {[%clk 0:00:02.6]} 33. Qxd8+ {[%clk 0:00:12.6]}
33... Kb7 {[%clk 0:00:03.5]} 34. Nc3 {[%clk 0:00:08.3]} 34... Qd2 {[%clk
0:00:02.4]} 35. Qxd5+ {[%clk 0:00:07.8]} 35... Qxd5 {[%clk 0:00:03.1]} 36. Nxd5
{[%clk 0:00:08.4]} 36... a5 {[%clk 0:00:02.4]} 37. Nf6+ {[%clk 0:00:08.6]} 37...
Kc7 {[%clk 0:00:02.8]} 38. Nxh7 {[%clk 0:00:09.5]} 38... b5 {[%clk 0:00:03.7]}
39. Ng5 {[%clk 0:00:09.2]} 39... b4 {[%clk 0:00:03.5]} 40. axb4 {[%clk
0:00:09.9]} 40... a4 {[%clk 0:00:03.1]} 41. Bd5 {[%clk 0:00:10.4]} 41... a3
{[%clk 0:00:03.9]} 42. Ba2 {[%clk 0:00:11]} 42... Kd6 {[%clk 0:00:04.7]} 43.
Nxf7+ {[%clk 0:00:11.2]} 43... Ke7 {[%clk 0:00:05.2]} 44. h5 {[%clk 0:00:11.5]}
44... Kf6 {[%clk 0:00:06]} 45. h6 {[%clk 0:00:11.5]} 45... Kg6 {[%clk
0:00:06.9]} 46. b5 {[%clk 0:00:11.8]} 46... Kh7 {[%clk 0:00:07.8]} 47. b6 {[%clk
0:00:12]} 47... Kg6 {[%clk 0:00:08.5]} 48. b7 {[%clk 0:00:12.1]} 48... Kh7
{[%clk 0:00:09.4]} 49. b8=Q {[%clk 0:00:12]} 49... Kg6 {[%clk 0:00:10.3]} 50.
Qg8+ {[%clk 0:00:11.7]} 50... Kh5 {[%clk 0:00:10.4]} 51. Qg5# {[%clk 0:00:11.6]}
1-0

[Event "Late-Titled-Tuesday-Blitz-February-06-2024"]
[Site "Chess.com"]
[Date "2024.02.06"]
[Round "5"]
[White "mr_gustavo"]
[Black "WPWPWP-2015"]
[Result "1-0"]
[WhiteElo "2698"]
[BlackElo "2486"]
[TimeControl "180+1"]
[EndTime "14:55:35 PST"]
[Termination "mr_gustavo won on time"]

1. e4 {[%clk 0:03:00.9]} 1... e5 {[%clk 0:02:59.6]} 2. Nf3 {[%clk 0:03:00.4]}
2... Nc6 {[%clk 0:03:00]} 3. Nc3 {[%clk 0:02:59.8]} 3... Nf6 {[%clk 0:03:00.2]}
4. Bb5 {[%clk 0:02:59.9]} 4... Nd4 {[%clk 0:02:58.1]} 5. Bc4 {[%clk 0:02:59.8]}
5... Nxf3+ {[%clk 0:02:57.6]} 6. Qxf3 {[%clk 0:02:59.4]} 6... c6 {[%clk
0:02:57]} 7. d3 {[%clk 0:02:58.8]} 7... d6 {[%clk 0:02:56.9]} 8. h3 {[%clk
0:02:58.7]} 8... Be7 {[%clk 0:02:56.8]} 9. O-O {[%clk 0:02:58.3]} 9... O-O
{[%clk 0:02:56.6]} 10. Be3 {[%clk 0:02:58.9]} 10... Be6 {[%clk 0:02:56.3]} 11.
Bxe6 {[%clk 0:02:57]} 11... fxe6 {[%clk 0:02:56.9]} 12. Qe2 {[%clk 0:02:57.1]}
12... Qe8 {[%clk 0:02:56.3]} 13. d4 {[%clk 0:02:56.4]} 13... exd4 {[%clk
0:02:54.8]} 14. Bxd4 {[%clk 0:02:56.4]} 14... e5 {[%clk 0:02:52.9]} 15. Be3
{[%clk 0:02:56.4]} 15... Qg6 {[%clk 0:02:45.4]} 16. f3 {[%clk 0:02:55.3]} 16...
Nh5 {[%clk 0:02:42.2]} 17. Qd2 {[%clk 0:02:54.1]} 17... Rf7 {[%clk 0:02:29.8]}
18. Ne2 {[%clk 0:02:50.5]} 18... Qe6 {[%clk 0:02:24.2]} 19. b3 {[%clk
0:02:44.2]} 19... g6 {[%clk 0:02:17.5]} 20. c4 {[%clk 0:02:43.2]} 20... Bd8
{[%clk 0:02:11.4]} 21. Rad1 {[%clk 0:02:40.2]} 21... Bc7 {[%clk 0:02:10.6]} 22.
Kh2 {[%clk 0:02:14.6]} 22... b6 {[%clk 0:02:02.3]} 23. Qc2 {[%clk 0:02:04]}
23... Bd8 {[%clk 0:01:52.4]} 24. Rd2 {[%clk 0:01:52.2]} 24... Be7 {[%clk
0:01:49]} 25. b4 {[%clk 0:01:44.5]} 25... Raf8 {[%clk 0:01:43.8]} 26. b5 {[%clk
0:01:41.6]} 26... c5 {[%clk 0:01:32.1]} 27. Qd3 {[%clk 0:01:37.4]} 27... Nf6
{[%clk 0:01:22.3]} 28. Nc3 {[%clk 0:01:36.3]} 28... Nh5 {[%clk 0:01:19.5]} 29.
Nd5 {[%clk 0:01:20]} 29... Bh4 {[%clk 0:01:17.4]} 30. a4 {[%clk 0:01:10.1]}
30... Ng3 {[%clk 0:00:40.1]} 31. Rfd1 {[%clk 0:01:06.8]} 31... Nh5 {[%clk
0:00:39.2]} 32. a5 {[%clk 0:01:05.3]} 32... bxa5 {[%clk 0:00:27.2]} 33. Rf1
{[%clk 0:00:53.8]} 33... Ng3 {[%clk 0:00:26.4]} 34. Ra1 {[%clk 0:00:48]} 34...
Nh5 {[%clk 0:00:26.3]} 35. Qe2 {[%clk 0:00:47.5]} 35... Ng3 {[%clk 0:00:24.2]}
36. Qd1 {[%clk 0:00:45.5]} 36... Nh5 {[%clk 0:00:11.3]} 37. Rxa5 {[%clk
0:00:44.4]} 37... Kg7 {[%clk 0:00:09.1]} 38. Ra6 {[%clk 0:00:43.4]} 38... Bg3+
{[%clk 0:00:06.6]} 39. Kh1 {[%clk 0:00:43.1]} 39... Bh4 {[%clk 0:00:04.1]} 40.
Bxc5 {[%clk 0:00:40.8]} 40... Ng3+ {[%clk 0:00:02.8]} 41. Kh2 {[%clk 0:00:40.7]}
41... Rd7 {[%clk 0:00:02.6]} 42. Bf2 {[%clk 0:00:36.5]} 42... Nxe4 {[%clk
0:00:02.4]} 43. Bxh4 {[%clk 0:00:33.9]} 43... Nxd2 {[%clk 0:00:02.7]} 44. Qxd2
{[%clk 0:00:34.8]} 44... e4 {[%clk 0:00:03.2]} 45. Qc3+ {[%clk 0:00:33.3]} 45...
Qe5+ {[%clk 0:00:03.2]} 46. Qxe5+ {[%clk 0:00:33.1]} 46... dxe5 {[%clk
0:00:03.7]} 47. fxe4 {[%clk 0:00:33.6]} 47... Rf1 {[%clk 0:00:03.4]} 48. Bf6+
{[%clk 0:00:33.5]} 48... Kh6 {[%clk 0:00:03.4]} 49. Bxe5 {[%clk 0:00:33.5]}
49... Rdf7 {[%clk 0:00:03.4]} 50. Bd4 {[%clk 0:00:30.1]} 50... Rd1 {[%clk
0:00:02.4]} 51. Be3+ {[%clk 0:00:31]} 51... Kg7 {[%clk 0:00:02.4]} 52. Nf4
{[%clk 0:00:29.3]} 52... g5 {[%clk 0:00:02]} 53. Ne6+ {[%clk 0:00:29.7]} 53...
Kg8 {[%clk 0:00:01.8]} 54. b6 {[%clk 0:00:30.2]} 1-0

[Event "Late-Titled-Tuesday-Blitz-February-06-2024"]
[Site "Chess.com"]
[Date "2024.02.06"]
[Round "5"]
[White "LiemLe"]
[Black "Arystanner"]
[Result "1-0"]
[WhiteElo "3041"]
[BlackElo "2858"]
[TimeControl "180+1"]
[EndTime "14:55:37 PST"]
[Termination "LiemLe won on time"]

1. Nf3 {[%clk 0:03:00.9]} 1... d5 {[%clk 0:03:00]} 2. e3 {[%clk 0:03:00.5]} 2...
Nf6 {[%clk 0:02:59.6]} 3. c4 {[%clk 0:03:00.6]} 3... e6 {[%clk 0:03:00.3]} 4.
Nc3 {[%clk 0:03:00.3]} 4... Bd6 {[%clk 0:03:00.8]} 5. b3 {[%clk 0:02:56.8]} 5...
O-O {[%clk 0:03:01.1]} 6. Bb2 {[%clk 0:02:57.5]} 6... c5 {[%clk 0:03:01.6]} 7.
g4 {[%clk 0:02:56.1]} 7... d4 {[%clk 0:03:00.2]} 8. exd4 {[%clk 0:02:54.3]} 8...
e5 {[%clk 0:03:00.9]} 9. dxc5 {[%clk 0:02:45.3]} 9... Bxc5 {[%clk 0:03:00.2]}
10. g5 {[%clk 0:02:42]} 10... Nh5 {[%clk 0:02:46.4]} 11. Nxe5 {[%clk 0:02:38.4]}
11... Qxg5 {[%clk 0:02:38.7]} 12. Ne4 {[%clk 0:02:36.2]} 12... Qf5 {[%clk
0:02:21.6]} 13. Nxc5 {[%clk 0:02:34.7]} 13... Re8 {[%clk 0:02:22.3]} 14. d4
{[%clk 0:02:26.1]} 14... f6 {[%clk 0:02:02.1]} 15. Bd3 {[%clk 0:02:06.2]} 15...
Qh3 {[%clk 0:02:01.4]} 16. Qc2 {[%clk 0:01:49.8]} 16... fxe5 {[%clk 0:01:55.6]}
17. Bxh7+ {[%clk 0:01:48]} 17... Kh8 {[%clk 0:01:55.8]} 18. O-O-O {[%clk
0:01:46.7]} 18... Nf4 {[%clk 0:01:51.6]} 19. Be4 {[%clk 0:01:46.2]} 19... Nc6
{[%clk 0:01:41.3]} 20. dxe5 {[%clk 0:01:41.7]} 20... Bg4 {[%clk 0:01:31.3]} 21.
Rd6 {[%clk 0:01:27.8]} 21... Nxe5 {[%clk 0:01:11.9]} 22. Kb1 {[%clk 0:01:23.3]}
22... Nf3 {[%clk 0:01:03.5]} 23. Ka1 {[%clk 0:01:18.5]} 23... Ng5 {[%clk
0:00:38.4]} 24. Bxb7 {[%clk 0:01:14.8]} 24... Rad8 {[%clk 0:00:36.9]} 25. Qd2
{[%clk 0:01:07.3]} 25... Nfe6 {[%clk 0:00:16.5]} 26. Nxe6 {[%clk 0:00:59.8]}
26... Nxe6 {[%clk 0:00:17.4]} 27. Re1 {[%clk 0:00:51.7]} 27... Rxd6 {[%clk
0:00:17.8]} 28. Qxd6 {[%clk 0:00:52.6]} 28... Rd8 {[%clk 0:00:18.6]} 29. Qe5
{[%clk 0:00:48.7]} 29... Qh6 {[%clk 0:00:15]} 30. Bd5 {[%clk 0:00:48.5]} 30...
Nc5 {[%clk 0:00:12.7]} 31. Rg1 {[%clk 0:00:45.9]} 31... Nd3 {[%clk 0:00:12.3]}
32. Qxg7+ {[%clk 0:00:45.6]} 32... Qxg7 {[%clk 0:00:13.1]} 33. Bxg7+ {[%clk
0:00:46.2]} 33... Kxg7 {[%clk 0:00:14]} 34. Rxg4+ {[%clk 0:00:46.5]} 34... Kf6
{[%clk 0:00:14.9]} 35. Rg3 {[%clk 0:00:46.5]} 35... Nb4 {[%clk 0:00:13.5]} 36.
Kb2 {[%clk 0:00:42.9]} 36... Rh8 {[%clk 0:00:13.6]} 37. h3 {[%clk 0:00:42]}
37... Ke5 {[%clk 0:00:13.9]} 38. Ka3 {[%clk 0:00:33.5]} 38... Nc2+ {[%clk
0:00:12.5]} 39. Ka4 {[%clk 0:00:33.1]} 39... Rh6 {[%clk 0:00:12.6]} 40. Ka5
{[%clk 0:00:30.3]} 40... Kd4 {[%clk 0:00:10.8]} 41. b4 {[%clk 0:00:26.5]} 41...
Rf6 {[%clk 0:00:09.8]} 42. Rf3 {[%clk 0:00:24.4]} 42... Rg6 {[%clk 0:00:06.2]}
43. a4 {[%clk 0:00:21.7]} 43... Rg1 {[%clk 0:00:05.6]} 44. b5 {[%clk 0:00:20.6]}
44... Ra1 {[%clk 0:00:04.7]} 45. h4 {[%clk 0:00:19.9]} 45... Ne1 {[%clk
0:00:04.6]} 46. Rf7 {[%clk 0:00:17.4]} 46... Nd3 {[%clk 0:00:05.1]} 47. Rxa7
{[%clk 0:00:17.3]} 47... Nc5 {[%clk 0:00:05.7]} 48. Kb6 {[%clk 0:00:17.4]} 48...
Rg1 {[%clk 0:00:01]} 49. Rf7 {[%clk 0:00:15.3]} 1-0